Cogmind - Beta 15 @@@ ROGUE MODE // 2025.07.26 @ 14:09:02 Player: LightKnight Result: Destroyed by 9I-U0R(j) with Overtuned Pulse Rifle Performance ------------- Evolutions (2) 1000 Regions Visited (12) 2400 Robots Destroyed (268) 1340 Value Destroyed (8765) 8765 Prototype IDs (18) 360 Alien Tech Used (0) 0 Bonus (4658) 4658 TOTAL SCORE: 18523 Bonus ------- High Alert Combat Kills 1958 Follower Combat Kills 1716 Entered Garrisons 200 Registered with UFD 300 Met Optimus in HQ 500 Friendly Fire -16 Cogmind --------- Core Integrity 0/550 Matter 300/300 Energy 290/290 System Corruption 0% Temperature Warm (165) Movement Treading (160) Ox1 Location -8/Scraptown Parts ------- > --- POWER (1) -------- Improved Deuterium Engine > --- PROPULSION (3) --- Overtuned Treads Overtuned Treads > --- UTILITY (4) ------ Scrap Suit Makeshift Microdissipator Network High-capacity Storage Unit > --- WEAPON (3) ------- Overtuned Pulse Rifle Overtuned Pulse Rifle Overtuned Pulse Rifle > --- INVENTORY (20) --- Light Nuclear Core Armored Treads Armored Treads Overtuned Treads Overtuned Treads Cooling System Makeshift Microdissipator Network Advanced Visual Processing Unit Experimental Sensor Array Advanced Terrain Scanner Surveybot 24 Chip Improved Particle Charger A0-MCA's Component Scanner Overtuned Pulse Rifle Overtuned Pulse Rifle Mini Grenade Launcher Heavy Rocket Launcher Great Maul Large Botcube Peak State ------------ > --- POWER ------------ Light Antimatter Reactor > --- PROPULSION ------- Improved Treads Spiked Treads Armored Treads > --- UTILITY ---------- Improved Cryofiber Web Improved Heat Sink High-capacity Storage Unit Advanced Targeting Computer > --- WEAPON ----------- Advanced Beam Rifle Gatling Laser Plasma Rifle > --- INVENTORY -------- Heavy Ion Engine Light Treads Armored Treads Armored Treads Armored Treads Cryofiber Web Improved Heat Sink Advanced Visual Processing Unit Experimental Sensor Array Advanced Terrain Scanner Improved Particle Charger A0-MCA's Component Scanner System Restoration Module Improved EM Shotgun Pulse Rifle Heavy Particle Cannon Mini Grenade Launcher Heavy Rocket Launcher Large Botcube [Rating: 48] Favorites ----------- Power Heavy Ion Engine Engine Heavy Ion Engine Power Core Light Nuclear Core Reactor Light Antimatter Reactor Propulsion Improved Treads Treads Improved Treads Leg Aluminum Leg Utility High-capacity Storage Unit Device Improved Heat Sink Storage High-capacity Storage Unit Processor Advanced Targeting Computer Protection Reactive Plating Weapon Improved Assault Rifle Energy Gun Plasma Rifle Energy Cannon Beam Cannon Ballistic Gun Improved Assault Rifle Ballistic Cannon Siege Cannon Replica Launcher Mini Grenade Launcher Special Weapon CPS Tube Impact Weapon Great Maul Build | -11 -10 -10 -9 -9 -9 -8 -8 -8 -8 -8 -8 -8 ------- Run | Yrd Mat Min Mat Min Exi Min Mat Gar Mat Sto Rec Scr Slots Evolved 4 | . . . 2 . . . 2 . . . . . Power . | . . . . . . . . . . . . . Propulsion 1 | . . . 1 . . . . . . . . . Utility 2 | . . . . . . . 2 . . . . . Weapon 1 | . . . 1 . . . . . . . . . Parts Attached 104 | 1 13 1 19 1 2 2 12 11 8 11 2 21 Power 9 | . 3 . 2 . . . . 1 . 2 . 1 Engine 7 | . 2 . 2 . . . . 1 . 1 . 1 Core 1 | . 1 . . . . . . . . . . . Reactor 1 | . . . . . . . . . . 1 . . Propulsion 30 | . 5 . 8 1 . . 4 2 1 3 . 6 Treads 27 | . 2 . 8 1 . . 4 2 1 3 . 6 Leg 3 | . 3 . . . . . . . . . . . Wheel . | . . . . . . . . . . . . . Hover . | . . . . . . . . . . . . . Flight . | . . . . . . . . . . . . . Utility 29 | . 3 1 2 . . 1 5 3 5 2 1 6 Device 18 | . 2 1 . . . . 2 1 3 2 1 6 Storage 3 | . 1 . 1 . . . 1 . . . . . Processor 4 | . . . . . . . 1 1 2 . . . Hackware . | . . . . . . . . . . . . . Protection 4 | . . . 1 . . 1 1 1 . . . . Artifact . | . . . . . . . . . . . . . Weapon 36 | 1 2 . 7 . 2 1 3 5 2 4 1 8 Energy Gun 8 | 1 . . . . . . . . 2 1 1 3 Energy Cannon 4 | . 2 . . . . . . 1 . . . 1 Ballistic Gun 15 | . . . 7 . 1 1 3 3 . . . . Ballistic Cannon 1 | . . . . . . . . . . . . 1 Launcher 6 | . . . . . 1 . . 1 . 3 . 1 Special Weapon 1 | . . . . . . . . . . . . 1 Impact Weapon 1 | . . . . . . . . . . . . 1 Slashing Weapon . | . . . . . . . . . . . . . Piercing Weapon . | . . . . . . . . . . . . . Special Melee Weapon . | . . . . . . . . . . . . . Unidentified Prototypes 1 | . . . . . . . 1 . . . . . Parts Lost 23 | . 2 . . 1 . 1 . 7 . 6 . 6 Power 4 | . 1 . . . . . . 1 . . . 2 Propulsion 9 | . . . . 1 . . . 2 . 3 . 3 Utility 6 | . 1 . . . . 1 . 2 . 1 . 1 Weapon 4 | . . . . . . . . 2 . 2 . . Highest Loss Streak 5 | . 1 . . 1 . 1 . 2 . 5 . 2 To Critical Strikes 1 | . . . . . . . . 1 . . . . Average Backups 17 | 6 7 9 14 14 14 15 18 19 19 18 20 18 Power 1 | 1 1 1 1 1 1 2 2 2 2 2 3 1 Propulsion 5 | 4 3 3 5 5 5 5 6 6 6 5 5 4 Utility 3 | . . 1 . 1 2 2 2 2 4 4 5 6 Weapon 6 | 1 2 3 7 6 6 5 7 8 7 6 7 5 Tool/Special . | . . . . . . . . . . . . . Unused Backups 41 | . 4 . 10 . 1 1 2 1 3 3 . 16 Power 2 | . . . . . . . . . . . . 2 Propulsion 6 | . 4 . . . . . . . . . . 2 Utility 15 | . . . 2 . . 1 . . 1 3 . 8 Weapon 16 | . . . 8 . . . 2 1 2 . . 3 Tool/Special 2 | . . . . . 1 . . . . . . 1 Average Slot Usage (%) 97 | . 97 100 99 99 100 99 98 99 99 99 100 94 Engine 6 | . 13 14 10 11 11 11 9 8 9 1 . . Reactor 3 | . . . . . . . . . . 7 9 7 Treads 27 | . . 28 32 32 33 33 27 26 26 26 27 26 Leg 1 | . 27 . . . . . . . . . . . Device 10 | . 12 14 4 . . . 7 9 14 17 18 14 Storage 9 | . 14 14 11 11 11 11 9 9 9 9 9 9 Processor 6 | . . . . . . . 9 13 12 9 9 8 Protection 3 | . . . 6 11 11 10 9 4 . . . . Energy Gun 11 | . 3 . . . . . . . 8 15 26 26 Energy Cannon 3 | . 20 28 3 . . . . . 4 8 . . Ballistic Gun 12 | . 3 . 29 33 31 32 26 25 13 . . . Peak Build Rating 48 | 6 9 10 22 24 24 24 39 42 45 44 45 48 Average Rating 33 | 6 7 9 19 22 24 23 35 38 42 41 44 43 On Entrance 25 | 6 6 8 10 22 24 24 23 39 42 43 39 45 Naked Turns . | . . . . . . . . . . . . . Heaviest Build 71 | 12 22 22 47 47 50 47 70 66 68 68 64 71 Greatest Support 69 | 20 40 40 63 66 66 66 69 67 65 69 69 69 Greatest Overweight (x) 1 | . . . . 1 . . 1 1 1 1 . 1 Average Overweight (x) . | . . . . . . . . . . . . . Largest Inventory Capacity 20 | 8 10 10 15 15 15 15 20 20 20 20 20 20 Average Capacity 17 | 8 8 10 14 15 15 15 18 20 20 20 20 20 Most Carried 20 | 6 10 10 15 15 15 15 20 20 20 20 20 20 Average Carried 17 | 6 7 9 14 14 14 14 18 19 19 18 20 19 Final Capacity 20 | 8 10 10 15 15 15 15 20 20 20 20 20 20 Final Carried 20 | 6 9 10 15 15 15 15 20 20 20 20 20 20 Class Distribution -------------------- 31% | Commander-Gunner 29% | Gunner 23% | Tank 9% | Mutant Dominant Class ---------------- Mutant | -10/Materials Mutant | -10/Mines Tank | -9/Materials Tank | -9/Mines Tank | -9/Exiles Tank | -8/Mines Gunner | -8/Materials Gunner | -8/Garrison Gunner | -8/Materials Gunner | -8/Storage Commander-Gunner | -8/Recycling Commander-Gunner | -8/Scraptown Resources | -11 -10 -10 -9 -9 -9 -8 -8 -8 -8 -8 -8 -8 ----------- Run | Yrd Mat Min Mat Min Exi Min Mat Gar Mat Sto Rec Scr Matter Collected 4775 | 200 175 40 896 125 100 122 724 1390 304 391 40 268 Remotely . | . . . . . . . . . . . . . Salvage Created 10264 | . 822 181 1465 182 . 155 1006 1608 899 2067 750 1129 Parts 567 | . 50 9 93 14 . 7 57 101 65 96 35 40 Haulers Intercepted 17 | . 1 . 6 . . . 1 . 5 4 . . Recyclers Shooed 6 | . . 1 1 . . . . . . 3 1 . Parts Field Recycled . | . . . . . . . . . . . . . Retrieved Matter . | . . . . . . . . . . . . . Parts Self-Destructed . | . . . . . . . . . . . . . Prevented . | . . . . . . . . . . . . . Kills | -11 -10 -10 -9 -9 -9 -8 -8 -8 -8 -8 -8 -8 ------- Run | Yrd Mat Min Mat Min Exi Min Mat Gar Mat Sto Rec Scr Combat Hostiles Destroyed 206 | . 17 6 24 4 . 3 16 49 19 35 13 20 Melee 1 | . . . . . . . . 1 . . . . Guns 129 | . 3 . 20 4 . 3 16 40 6 12 13 12 Cannons 34 | . 10 6 4 . . . . . 4 7 . 3 AOE 35 | . 2 . . . . . . 8 9 15 . 1 Classes Destroyed 21 | . 7 . 3 1 . 1 1 3 1 1 . 3 Worker 6 | . . . 1 1 . . . . 1 3 . . Builder 5 | . . . . . . . . . 2 3 . . Tunneler 2 | . 1 . . . . . . . . . 1 . Hauler 17 | . 1 . 6 . . . 1 . 5 4 . . Recycler 8 | . 1 . . . . . 1 . . 3 3 . Mechanic 3 | . . . 1 . . . . . . 2 . . Operator 5 | . 1 . 3 . . . . . . 1 . . Watcher 16 | . 2 . 4 . . . 5 . 3 2 . . Swarmer 43 | . 3 3 4 . . . 3 17 8 4 1 . Saboteur 4 | . . . . . . . . 4 . . . . Grunt 73 | . 14 3 14 3 . 2 4 15 4 13 1 . Brawler 6 | . . . . . . 1 . 1 . 4 . . Duelist 4 | . . . . 1 . . . . . 3 . . Protector 5 | . . . . . . . . . . 2 3 . Sentry 39 | . . . 6 . . . 8 8 7 5 5 . Specialist 1 | . . . . . . . . 1 . . . . Hunter 7 | . . . . . . . 1 1 . 4 1 . Programmer 4 | . . . . . . . . 2 . . 2 . Federalist 3 | . . . . . . . . . . . . 3 Ranger 5 | . . . . . . . . . . . . 5 Scrapper 11 | . . . . . . . . . . . . 11 Butcher 1 | . . . . . . . . . . . . 1 Best Kill Streak 15 | . 5 2 5 3 . 3 4 7 15 13 5 4 Combat Bots Only 12 | . 5 2 5 3 . 3 4 7 12 7 5 4 Max Kills in Single Turn 4 | . 2 1 2 1 . 1 2 3 4 4 2 1 Gunslinging 1 | . . . 1 . . . 1 . . . . . Exploded 3 | . 2 . . . . . . 3 3 3 . 1 Melee 1 | . . . . . . . . 1 . . . . Uniques/NPCs Destroyed . | . . . . . . . . . . . . . Combat | -11 -10 -10 -9 -9 -9 -8 -8 -8 -8 -8 -8 -8 -------- Run | Yrd Mat Min Mat Min Exi Min Mat Gar Mat Sto Rec Scr Hostile Shots Fired 693 | . 65 30 67 17 . 9 41 136 42 126 13 147 Missed 223 | . 26 8 23 1 . 2 8 43 17 53 4 38 Hits 470 | . 39 22 44 16 . 7 33 93 25 73 9 109 Melee 16 | . . . . 5 . 2 . 1 . 8 . . Projectile 454 | . 39 22 44 11 . 5 33 92 25 65 9 109 AOE 2 | . . . . . . . . . . . . 2 Critical Strikes 21 | . . . 1 . . . . 6 1 4 1 8 Damage Taken 6967 | . 485 207 572 292 . 140 435 1177 330 1393 111 1825 Core 643 | . 62 17 13 . . . 39 79 25 187 . 221 Absorbed by Shields 70 | . . . . . . . 32 . . . 16 22 Ignored by Resistances 38 | . . . 36 2 . . . . . . . . Regen/Repaired (Parts) 354 | . . . . . . . . . 147 . . 207 Core Remaining (%) 88 | 100 . 68 . . . 96 . . . . . . Volleys Fired 525 | . 61 15 74 12 19 9 57 107 29 72 15 55 Largest 3 | . 2 2 3 3 3 3 3 3 3 3 3 3 Hottest 240 | . 120 120 140 69 69 69 75 113 218 218 216 240 Shots Fired 1350 | . 122 30 222 36 23 27 171 289 75 170 45 140 Gun 1080 | . 45 . 192 36 6 27 171 275 53 104 45 126 Cannon 221 | . 77 30 30 . . . . 10 17 46 . 11 Launcher 48 | . . . . . 17 . . 4 5 20 . 2 Special 1 | . . . . . . . . . . . . 1 Kinetic 750 | . 22 . 192 36 6 27 171 275 21 . . . Thermal 455 | . 77 30 30 . . . . . 32 104 45 137 Explosive 21 | . . . . . . . . 4 5 10 . 2 Electromagnetic 123 | . 23 . . . 17 . . 10 17 56 . . Robot Hit Streak 24 | . 8 4 10 20 . 13 24 24 16 16 10 13 Robot Miss Streak 5 | . 4 3 4 2 . 2 5 4 2 4 2 2 Penetration Max . | . . . . . . . . . . . . . Secondary Targets 16 | . . . 1 1 . 1 3 7 . 1 . 2 Max Gunslinging Chain 1 | . . . 1 1 . 1 1 1 . 1 . 1 Shots Hit Robots 847 | . 71 14 130 30 . 21 116 183 51 106 28 97 Core Hits 430 | . 28 8 52 8 . 7 44 79 41 103 27 33 Critical Kills 5 | . 2 . 1 . . . 1 1 . . . . Critical Parts Destroyed 5 | . . . . . . . 2 3 . . . . Critical Strikes 24 | . 3 . 1 . . . 3 4 1 2 1 9 Burn 13 | . . . . . . . . . 1 2 1 9 Meltdown 3 | . 2 . 1 . . . . . . . . . Destroy 7 | . . . . . . . 3 4 . . . . Corrupt 1 | . 1 . . . . . . . . . . . Melee Attacks 25 | . . . . . . . . . . . . 25 Impact 25 | . . . . . . . . . . . . 25 Slashing . | . . . . . . . . . . . . . Piercing . | . . . . . . . . . . . . . Sneak Attacks . | . . . . . . . . . . . . . Combat Hostiles . | . . . . . . . . . . . . . Follow-up Attacks . | . . . . . . . . . . . . . Damage Inflicted 20527 | . 1354 288 2216 514 . 362 1920 3817 1861 4905 1053 2237 Guns 13673 | . 365 . 1882 466 . 329 1915 3226 796 1886 989 1819 Cannons 2773 | . 891 270 301 . . . . . 302 784 . 225 Explosions 3781 | . 61 . . . . . . 591 755 2181 . 193 Melee . | . . . . . . . . . . . . . Ramming 300 | . 37 18 33 48 . 33 5 . 8 54 64 . Kinetic 8210 | . 177 . 1882 466 . 329 1915 3226 215 . . . Thermal 7177 | . 952 270 301 . . . . . 581 2040 989 2044 Explosive 2722 | . . . . . . . . 591 755 1183 . 193 Electromagnetic 2118 | . 188 . . . . . . . 302 1628 . . Impact . | . . . . . . . . . . . . . Slashing . | . . . . . . . . . . . . . Piercing . | . . . . . . . . . . . . . Highest Corruption 2 | . . . . . . . . 2 2 . 1 . Average Corruption 1 | . . . . . . . . 1 1 . 1 . Corruption Purged 3 | . . . . . . . . . 2 . 1 . Corruption Blocked . | . . . . . . . . . . . . . Effects 23 | . . . . . . . . 15 7 . 1 . Message Errors 6 | . . . . . . . . 5 1 . . . Matter Fused 7 | . . . . . . . . 5 2 . . . Heat Flow Errors 3 | . . . . . . . . 2 1 . . . Energy Discharges 2 | . . . . . . . . 1 1 . . . Parts Fused 2 | . . . . . . . . 1 1 . . . Data Loss (minor) 1 | . . . . . . . . . . . 1 . Data Loss (major) 1 | . . . . . . . . 1 . . . . Alerts 1 | . . . . . . . . . 1 . . . Overload Shots . | . . . . . . . . . . . . . Overflow Damage 107 | . . . . . . . . 29 17 61 . . Projectiles 37 | . . . . . . . . . . 37 . . Explosions 70 | . . . . . . . . 29 17 24 . . Melee . | . . . . . . . . . . . . . Knockbacks 2 | . 1 1 . . . . . . . . . . Impact 2 | . 1 1 . . . . . . . . . . Kinetic . | . . . . . . . . . . . . . Secondary . | . . . . . . . . . . . . . Self-Inflicted Damage 123 | . . . . . . . . 11 32 80 . . Shots 4 | . . . . . . . . 1 1 2 . . Rammed 38 | . . 5 6 6 . 4 2 . 1 6 8 . Targets Rammed 49 | . 6 5 6 6 . 4 2 . 2 8 10 . Kicked 6 | . 6 . . . . . . . . . . . Crushed 5 | . . . . . . . . . 1 2 2 . Highest Temperature 533 | . 180 165 169 185 36 178 117 120 77 533 64 349 Average Temperature 66 | . 53 50 46 76 5 96 23 21 9 195 35 142 Received Heat Transfer 2665 | . 234 51 210 63 . 45 144 423 108 495 . 892 Effects 3 | . . . . . . . . . . 1 . 2 Interference 2 | . . . . . . . . . . . . 2 Matter Decay 1 | . . . . . . . . . . 1 . . Siege Activations . | . . . . . . . . . . . . . Martial Activations . | . . . . . . . . . . . . . Shielding Activations . | . . . . . . . . . . . . . Robots Disrupted . | . . . . . . . . . . . . . Combat Hostiles . | . . . . . . . . . . . . . Robots Corrupted 1 | . . . . . . . . . . 1 . . Combat Hostiles 1 | . . . . . . . . . . 1 . . Parts Fried 6 | . . . . . . . . . 1 5 . . Impact Corruptions . | . . . . . . . . . . . . . Robots Melted 7 | . 2 . 1 . . . . . . . . 4 Combat Hostiles 6 | . 2 . . . . . . . . . . 4 Parts Melted 42 | . 4 1 3 . . . . . 2 8 5 19 Heat Transferred 15157 | . 1813 555 629 . . . . . 1375 4457 1830 4498 Parts Sabotaged 3 | . . . . . . . . 3 . . . . Parts Stolen . | . . . . . . . . . . . . . Parts Stripped . | . . . . . . . . . . . . . Power Chain Reactions 6 | . 1 . . . . . . . . 5 . . Alert | -11 -10 -10 -9 -9 -9 -8 -8 -8 -8 -8 -8 -8 ------- Run | Yrd Mat Min Mat Min Exi Min Mat Gar Mat Sto Rec Scr Maximum Alert Level 5 | . 1 1 2 . . . . 4 3 5 3 . Low Security (%) 36 | 100 66 95 14 100 . 100 100 1 . . . . Level 1 18 | . 33 4 80 . . . . 7 . . . . Level 2 12 | . . . 5 . . . . 14 69 6 33 . Level 3 15 | . . . . . . . . 34 30 8 66 . Level 4 16 | . . . . . . . . 41 . 82 . . Level 5 . | . . . . . . . . . . 2 . . High Security . | . . . . . . . . . . . . . Max Security . | . . . . . . . . . . . . . Peak Influence 1613 | . 252 220 411 163 . 50 190 1593 1030 1613 810 . Initial 776 | . . 77 . 144 . . . 113 776 432 624 . Average 520 | . 132 96 302 70 . 3 52 987 681 1305 716 . Influence Increases 7664 | . 573 293 1193 227 . 70 496 1610 664 1987 551 . Destroy 0b10 Robot/C 4280 | . 340 200 700 160 . 60 320 1040 380 840 240 . Destroy 0b10 Robot/NC 355 | . 30 . 80 10 . . 35 . 55 100 45 . Destroy Leader 838 | . 76 40 212 30 . 10 112 30 126 202 . . Allied During Kill 370 | . . 38 111 7 . . . 13 . 117 84 . Trap Triggered on 0b10 20 | . . . . . . . . . . 20 . . Successful Hack 119 | . 14 . 26 . . . 11 21 10 21 16 . Select Force Hacks 240 | . 30 . 60 . . . . . . . 150 . Disable Machine 270 | . 30 15 . 15 . . . 15 60 135 . . Anti-Garrison Action 500 | . . . . . . . . 350 . 150 . . Destroy Structure 207 | . 8 . 4 5 . . 3 111 33 42 1 . Lose Combat Pursuer 465 | . 45 . . . . . 15 30 . 360 15 . Influence Decreases 7664 | . 374 492 821 599 . 70 321 192 1233 1408 1477 677 Entered New Map 3477 | . . 122 . 228 . . . 62 817 592 979 677 Time Decay 3532 | . 354 370 596 361 . 60 321 . 416 556 498 . Lost Part 170 | . 20 . . 10 . 10 . 70 . 60 . . Lost Ally 335 | . . . 75 . . . . 60 . 200 . . Purge Threat 150 | . . . 150 . . . . . . . . . Squads Dispatched 26 | . 4 . 7 . . . 2 . 2 11 . . Investigation 9 | . 3 . 3 . . . . . . 3 . . Extermination . | . . . . . . . . . . . . . Reinforcement 10 | . 1 . 4 . . . 1 . 1 3 . . Assault 4 | . . . . . . . . . . 4 . . Garrison 3 | . . . . . . . 1 . 1 1 . . Intercept . | . . . . . . . . . . . . . Searches Triggered . | . . . . . . . . . . . . . Construction Impeded 2 | . . . 1 . . . . . . 1 . . Haulers Reinforced . | . . . . . . . . . . . . . Active Scanning Responses . | . . . . . . . . . . . . . Cargo Convoy Interrupts . | . . . . . . . . . . . . . Stealth | -11 -10 -10 -9 -9 -9 -8 -8 -8 -8 -8 -8 -8 --------- Run | Yrd Mat Min Mat Min Exi Min Mat Gar Mat Sto Rec Scr Distress Signals 13 | . 3 . 5 . . . 1 . 1 2 1 . Communications Jammed . | . . . . . . . . . . . . . Distress Signals . | . . . . . . . . . . . . . Times Spotted 334 | . 26 10 40 7 . 3 26 53 23 76 9 61 Peak Tracking Total 9 | . 4 3 4 3 . 3 4 6 9 8 4 9 Tactical Retreats 12 | . 2 . . . . . 1 2 . 6 1 . Traps | -11 -10 -10 -9 -9 -9 -8 -8 -8 -8 -8 -8 -8 ------- Run | Yrd Mat Min Mat Min Exi Min Mat Gar Mat Sto Rec Scr Traps Triggered 7 | . 1 . 1 . . . . 2 . 3 . . Indirectly 3 | . . . . . . . . . . 3 . . Trap Hack Attempts . | . . . . . . . . . . . . . Triggered . | . . . . . . . . . . . . . Disarmed . | . . . . . . . . . . . . . Reprogrammed 12 | . . . . . . . . . . 12 . . Reused 2 | . . . . . . . . . . 2 . . Traps Extracted . | . . . . . . . . . . . . . Installed . | . . . . . . . . . . . . . Triggered 2 | . . . . . . . . . . 2 . . Machines | -11 -10 -10 -9 -9 -9 -8 -8 -8 -8 -8 -8 -8 ---------- Run | Yrd Mat Min Mat Min Exi Min Mat Gar Mat Sto Rec Scr Machines Disabled 32 | . 2 1 . 1 2 . . 5 4 10 . 7 Max in Single Turn 2 | . 1 1 . . 1 . . 2 1 1 . 1 Garrison Access 1 | . . . . . . . . . . 1 . . Garrison Relay 1 | . . . . . . . . 1 . . . . Phase Generator 1 | . . . . . . . . 1 . . . . Machines Repaired . | . . . . . . . . . . . . . Machines Dismantled . | . . . . . . . . . . . . . Machines Sabotaged . | . . . . . . . . . . . . . Overloaded Fab Kills . | . . . . . . . . . . . . . Hacking | -11 -10 -10 -9 -9 -9 -8 -8 -8 -8 -8 -8 -8 --------- Run | Yrd Mat Min Mat Min Exi Min Mat Gar Mat Sto Rec Scr Machines Accessed 57 | . 8 . 9 . 4 . 7 3 3 9 12 2 Terminals 40 | . 7 . 7 . . . 6 3 2 9 6 . Fabricators . | . . . . . . . . . . . . . Repair Stations 1 | . . . . . . . . . 1 . . . Recycling Units 9 | . 1 . 2 . . . . . . . 6 . Scanalyzers . | . . . . . . . . . . . . . Garrison Access 1 | . . . . . . . 1 . . . . . Total Hacks 136 | . 23 . 24 . 4 . 18 5 7 22 25 8 Successful 70 | . 12 . 13 . 4 . 6 2 3 11 11 8 Failed 64 | . 10 . 10 . . . 12 3 4 11 14 . Catastrophic 9 | . . . 1 . . . 1 1 1 3 2 . Database Lockouts 2 | . 1 . 1 . . . . . . . . . Manual 60 | . 13 . 13 . 2 . 4 . . 5 23 . Terminals 109 | . 22 . 22 . . . 15 5 4 22 19 . Fabricators . | . . . . . . . . . . . . . Repair Stations 3 | . . . . . . . . . 3 . . . Recycling Units 9 | . 1 . 2 . . . . . . . 6 . Scanalyzers . | . . . . . . . . . . . . . Garrison Access 3 | . . . . . . . 3 . . . . . Terminal Hacks 51 | . 8 . 10 . 4 . 4 2 1 9 5 8 Record 8 | . . . . . 4 . . . . . . 4 Part Schematic 2 | . . . . . . . . . . . 2 . Robot Schematic 1 | . . . . . . . . . . . 1 . Robot Analysis 10 | . 3 . 2 . . . 1 . . . . 4 Prototype ID Bank 12 | . 2 . 4 . . . 1 . . 3 2 . Open Door 2 | . . . . . . . . 1 . 1 . . Branch Access Points 1 | . . . . . . . . . 1 . . . Terminal Index 2 | . 1 . . . . . . . . 1 . . Unreport Threat 1 | . . . 1 . . . . . . . . . Locate Traps 7 | . 2 . 1 . . . 2 . . 2 . . Reprogram Traps 2 | . . . . . . . . . . 2 . . Recall Investigation 1 | . . . 1 . . . . . . . . . Hauler Manifests 1 | . . . 1 . . . . . . . . . Patrol Navigation 1 | . . . . . . . . 1 . . . . Fabricator Hacks . | . . . . . . . . . . . . . Repair Station Hacks 2 | . . . . . . . . . 2 . . . Scan Component 1 | . . . . . . . . . 1 . . . Repair 1 | . . . . . . . . . 1 . . . Recycling Unit Hacks . | . . . . . . . . . . . . . Scanalyzer . | . . . . . . . . . . . . . Garrison Access Hacks 1 | . . . . . . . 1 . . . . . Unlock Access 1 | . . . . . . . 1 . . . . . Unauthorized Hacks 16 | . 4 . 3 . . . 1 . . 2 6 . Terminals 8 | . 3 . 1 . . . 1 . . 2 1 . Botnet 8 | . 3 . 1 . . . 1 . . 2 1 . Fabricators . | . . . . . . . . . . . . . Repair Stations . | . . . . . . . . . . . . . Recycling Units 8 | . 1 . 2 . . . . . . . 5 . Tunnel 8 | . 1 . 2 . . . . . . . 5 . Scanalyzers . | . . . . . . . . . . . . . Garrison Access . | . . . . . . . . . . . . . Data Cores Recovered 2 | . . . 1 . . . . . . 1 . . Used . | . . . . . . . . . . . . . Hacking Detections 37 | . 6 . 5 . . . 6 2 3 8 7 . Full Trace Events 5 | . . . . . . . . 1 . 2 2 . Feedback Events 1 | . . . . . . . . 1 . . . . Corruption 1 | . . . . . . . . 1 . . . . Feedback Blocked . | . . . . . . . . . . . . . Robot Schematics Acquired 1 | . . . . . . . . . . . 1 . Robots Built . | . . . . . . . . . . . . . Authchips . | . . . . . . . . . . . . . Time . | . . . . . . . . . . . . . Total Robot Build Rating . | . . . . . . . . . . . . . Part Schematics Acquired 2 | . . . . . . . . . . . 2 . Parts Built . | . . . . . . . . . . . . . Authchips . | . . . . . . . . . . . . . Time . | . . . . . . . . . . . . . Total Part Build Rating . | . . . . . . . . . . . . . Parts Repaired 1 | . . . . . . . . . 1 . . . Time 38 | . . . . . . . . . 38 . . . Parts Recycled . | . . . . . . . . . . . . . Recycled Matter . | . . . . . . . . . . . . . Retrieved Matter . | . . . . . . . . . . . . . Retrieved Components . | . . . . . . . . . . . . . Parts Scanalyzed . | . . . . . . . . . . . . . Part Schematics Acquired . | . . . . . . . . . . . . . Parts Damaged . | . . . . . . . . . . . . . Bothacking | -11 -10 -10 -9 -9 -9 -8 -8 -8 -8 -8 -8 -8 ------------ Run | Yrd Mat Min Mat Min Exi Min Mat Gar Mat Sto Rec Scr Used RIF Installer . | . . . . . . . . . . . . . Robots Hacked . | . . . . . . . . . . . . . Non-combat . | . . . . . . . . . . . . . Combat . | . . . . . . . . . . . . . Robot Hacks Applied . | . . . . . . . . . . . . . Relay Couplers Released 5 | . . . . . . . . 3 . 2 . . Machine Destruction 5 | . . . . . . . . 3 . 2 . . Fabnet Peak Effective % . | . . . . . . . . . . . . . Robots Rewired 23 | . . . . . . . . 3 . 1 19 . Allies Hacked . | . . . . . . . . . . . . . Hacks Repelled . | . . . . . . . . . . . . . Allies | -11 -10 -10 -9 -9 -9 -8 -8 -8 -8 -8 -8 -8 -------- Run | Yrd Mat Min Mat Min Exi Min Mat Gar Mat Sto Rec Scr Total Allies 38 | . . 4 . 1 . . . 3 . 10 19 1 Largest Group 19 | . . 4 4 1 . . . 2 . 10 19 18 Highest-Rated Group 341 | . . 71 71 31 . . . 56 . 173 341 331 Highest-Rated Ally 89 | . . 31 31 31 . . . 31 . 29 27 89 Initial Warlord ECA Mod 16 | . . . . . . . . . 4 4 4 4 Total Orders 6 | . . . . . . . . 2 . . 1 3 STAY 4 | . . . . . . . . 1 . . 1 2 FOLLOW 2 | . . . . . . . . 1 . . . 1 Ally Attacks 295 | . . 30 56 5 . . . 14 . 78 14 98 Total Damage 5627 | . . 291 612 203 . . . 343 . 944 335 2899 Kills 68 | . . 4 12 5 . . . 3 . 9 3 32 Allies Corrupted . | . . . . . . . . . . . . . Allies Melted 19 | . . . . . . . . . . . . 19 Turrets Deployed 1 | . . . . . . . . . . . . 1 Intel | -11 -10 -10 -9 -9 -9 -8 -8 -8 -8 -8 -8 -8 ------- Run | Yrd Mat Min Mat Min Exi Min Mat Gar Mat Sto Rec Scr Active Infowar (turns) . | . . . . . . . . . . . . . Robot Analysis Total 10 | . 3 . 2 . . . 1 . . . . 4 Derelict Logs Recovered 3 | . . 2 . 1 . . . . . . . . Drone Launches . | . . . . . . . . . . . . . Drone Recoveries . | . . . . . . . . . . . . . Exploration | -11 -10 -10 -9 -9 -9 -8 -8 -8 -8 -8 -8 -8 ------------- Run | Yrd Mat Min Mat Min Exi Min Mat Gar Mat Sto Rec Scr Turns Passed 20793 | 2 949 902 2347 1037 1341 717 1199 2064 1002 1623 1325 6285 Spaces Moved 10868 | 1 598 529 1286 617 810 425 663 1147 518 619 603 3052 Core . | . . . . . . . . . . . . . Treads 10287 | . 18 529 1286 617 810 425 663 1147 518 619 603 3052 Legs 581 | 1 580 . . . . . . . . . . . Wheels . | . . . . . . . . . . . . . Hover . | . . . . . . . . . . . . . Flight . | . . . . . . . . . . . . . Fastest Speed 120 | 120 120 160 160 160 160 160 150 150 153 153 160 160 Average Speed 162 | 120 121 160 160 160 160 160 152 153 162 160 160 179 Slowest Speed 255 | 120 160 160 160 240 160 160 240 232 238 250 160 255 Overloaded Moves . | . . . . . . . . . . . . . Propulsion Burnouts . | . . . . . . . . . . . . . Robots Hopped . | . . . . . . . . . . . . . Potential Cave-ins . | . . . . . . . . . . . . . Cave-ins Triggered . | . . . . . . . . . . . . . Exploration Rate (%) 82 | 1 98 98 98 99 91 88 58 95 57 96 99 92 Regions Visited 12 Branch Regions 7 Pre-discovered Areas 10 | . 1 2 2 . . . . . . . 5 . Known Exits Taken 4 | . . . 1 . 1 . 1 . 1 . . . Unknown Exits Taken 7 | 1 1 1 . 1 . 1 . . . 1 1 . Scrap Searched 8 | . . 1 . 1 . 2 . . . . . 4 Spaces Dug . | . . . . . . . . . . . . . Terrain Destroyed 199 | . 6 . . . . . . 114 31 42 . 6 Melee . | . . . . . . . . . . . . . Projectile 7 | . . . . . . . . 2 1 . . 4 AOE 192 | . 6 . . . . . . 112 30 42 . 2 Terrain Rammed . | . . . . . . . . . . . . . Walls Destroyed . | . . . . . . . . . . . . . Machines Disabled . | . . . . . . . . . . . . . Actions | -11 -10 -10 -9 -9 -9 -8 -8 -8 -8 -8 -8 -8 --------- Run | Yrd Mat Min Mat Min Exi Min Mat Gar Mat Sto Rec Scr Total 13106 | 1 702 553 1450 638 833 443 767 1331 628 1096 919 3745 Wait 1108 | . 8 . 7 2 . . 8 11 43 364 143 522 Move 10857 | . 597 528 1285 616 809 424 663 1146 517 618 602 3052 Hop . | . . . . . . . . . . . . . Pick Up 92 | . 4 2 23 1 1 2 10 7 8 9 . 25 Fast Attach 29 | . 4 . 4 . . 1 4 5 3 1 . 7 Attach 33 | . 3 . 2 1 . 1 2 5 6 5 . 8 Detach 23 | . 4 . . . . . 3 . 7 . . 9 Swap 79 | 1 7 1 14 . 3 . 6 14 6 13 4 10 Drop 107 | . 8 2 34 . 1 2 12 4 7 5 . 32 Fire 525 | . 61 15 74 12 19 9 57 107 29 72 15 55 Melee 25 | . . . . . . . . . . . . 25 Ram . | . . . . . . . . . . . . . Kick 6 | . 6 . . . . . . . . . . . Crush 43 | . . 5 6 6 . 4 2 . 2 8 10 . Escape Stasis . | . . . . . . . . . . . . . Rewire 179 | . . . 1 . . . . 32 . 1 145 . Trap . | . . . . . . . . . . . . . Miscellaneous . | . . . . . . . . . . . . . Route ------- -11/Scrapyard -10/Materials (discovered 5 exits: *Mat x3 / [*Min x2]) -10/Mines (discovered 2 exits: *Mat x2) -9/Materials (discovered 4 exits: *Mat x3 / *Min) -9/Mines (discovered 4 exits: *Mat x2 / *Exi / [*Zio]) -9/Exiles (discovered 2 exits: *Min x2) -8/Mines (discovered 2 exits: *Mat x2) -8/Materials (discovered 5 exits: *Fac x2 / *Sto x2 / Gar) -8/Garrison (discovered 3 exits: *Mat x3) -8/Materials (discovered 4 exits: *Fac x2 / *Sto x2) -8/Storage (discovered 2 exits: *Fac / *Rec) -8/Recycling (discovered 2 exits: [*Fac] / *Scr) -8/Scraptown (discovered 2 exits: [*Fac x2]) History --------- Turn | Location | Event 3 | -11/Scrapyard | Discovered new exit (range 0) 3 | -11/Scrapyard | Entered Materials 311 | -10/Materials | Discovered new exit (range 16) 333 | -10/Materials | Build established: Mutant 445 | -10/Materials | Central database locked down 451 | -10/Materials | Discovered new exit (range 15) 665 | -10/Materials | Discovered new exit (range 15) 804 | -10/Materials | Discovered new exit (range 14) 896 | -10/Materials | Discovered new exit (range 16) 952 | -10/Materials | Entered Mines 958 | -10/Mines | Met a Derelict bent on vengeance 959 | -10/Mines | Assisted by bots powering up and referring to "LRC-V3" 1080 | -10/Mines | Learned location of Recycling (-8) 1102 | -10/Mines | Discovered new exit (range 14) 1118 | -10/Mines | A weapon hastily lodged in a ceiling crevice suddenly fell to the ground 1224 | -10/Mines | Discovered new exit (range 9) 1630 | -10/Mines | Escorted by a lone wolf Derelict 1650 | -10/Mines | Learned location of Storage (-8) 1854 | -10/Mines | Entered Materials 1854 | -9/Materials | Accompanied by 4 allies 1854 | -9/Materials | Evolved 2 slots: Propulsion x1, Weapon x1 1855 | -9/Materials | Identified exit to Mines 2274 | -9/Materials | Build established: Gunner 2352 | -9/Materials | Central database locked down 2463 | -9/Materials | Discovered new exit (range 10) 2630 | -9/Materials | Build established: Scavenger-Gunner 3127 | -9/Materials | Build established: Tank 3301 | -9/Materials | Discovered new exit (range 14) 3660 | -9/Materials | Discovered new exit (range 3) 4201 | -9/Materials | Entered Mines 4257 | -9/Mines | Learned location of 1 exit from Materials 4347 | -9/Mines | Received a Mining Laser from a helpful Derelict 4397 | -9/Mines | Discovered new exit (range 14) 4693 | -9/Mines | Discovered new exit (range 6) 4800 | -9/Mines | A Derelict revealed a hidden shortcut to a safe place 5016 | -9/Mines | Found a damaged Exp. Sensor Array with a note attached 5019 | -9/Mines | Found Prototype Device 5232 | -9/Mines | Deemed a non-threat by the Exiles lab entrance 5232 | -9/Mines | Discovered new exit (range 5) 5238 | -9/Mines | Entered Exiles 5238 | -9/Exiles | Found Exiles lab abandoned 5239 | -9/Exiles | Identified exit to Mines 6565 | -9/Exiles | Discovered exit to Mines (range 10) 6579 | -9/Exiles | Entered Mines 6600 | -8/Mines | Discovered new exit (range 10) 7077 | -8/Mines | Discovered new exit (range 9) 7296 | -8/Mines | Entered Materials 7296 | -8/Materials | Evolved 2 slots: Utility x2 7297 | -8/Materials | Identified exit to Factory 7387 | -8/Materials | Discovered new exit (range 14) 7959 | -8/Materials | Build established: Gunner 8146 | -8/Materials | Discovered exit to Factory (range 3) 8390 | -8/Materials | Discovered new exit (range 5) 8401 | -8/Materials | Garrison activated, responded to threat 8495 | -8/Materials | Identified exit to Garrison 8495 | -8/Materials | Entered Garrison 8625 | -8/Garrison | Triggered checkpoint 8653 | -8/Garrison | Triggered checkpoint 8927 | -8/Garrison | Destroyed 7 combat bots 9083 | -8/Garrison | Triggered checkpoint 9139 | -8/Garrison | Discovered new exit (range 12) 9421 | -8/Garrison | Triggered checkpoint 9477 | -8/Garrison | Discovered new exit (range 14) 9683 | -8/Garrison | Phase Generator disabled 9843 | -8/Garrison | Triggered checkpoint 9915 | -8/Garrison | Discovered new exit (range 9) 10054 | -8/Garrison | Garrison Relay disabled 10177 | -8/Garrison | Triggered checkpoint 10559 | -8/Garrison | Entered Materials 10605 | -8/Materials | Repaired Adv. Treads 10820 | -8/Materials | Discovered exit to Factory (range 16) 10836 | -8/Materials | Identified exit to Storage 11415 | -8/Materials | Discovered exit to Factory (range 16) 11496 | -8/Materials | Garrison activated, responded to threat 11533 | -8/Materials | Destroyed 12 combat bots 11561 | -8/Materials | Entered Storage 11655 | -8/Storage | Garrison activated, responded to threat 11749 | -8/Storage | Destroyed 7 combat bots 11767 | -8/Storage | Lost 5 parts (3n2w) 11769 | -8/Storage | Assisted by bots powering up and referring to "LRC-V3" 11902 | -8/Storage | Lost 7 allies 12196 | -8/Storage | Discovered exit to Factory (range 16) 12361 | -8/Storage | First assault squad dispatched 12476 | -8/Storage | Lost 3 allies 12496 | -8/Storage | Core integrity fell below 50% 13178 | -8/Storage | Used back door to open Recycling access 13178 | -8/Storage | Discovered new exit (range 5) 13184 | -8/Storage | Entered Recycling 13628 | -8/Recycling | Build established: Commander-Gunner 14142 | -8/Recycling | Discovered new exit (range 16) 14324 | -8/Recycling | Scanned before Scraplab entrance 14348 | -8/Recycling | Entered Scraplab 14361 | -8/Recycling | Discovered new exit (range 2) 14509 | -8/Recycling | Entered Scraptown 14509 | -8/Scraptown | Accompanied by 18 allies 15057 | -8/Scraptown | Discovered new exit (range 13) 15153 | -8/Scraptown | Visited Spacefarers 15172 | -8/Scraptown | Visited Red Mages 15217 | -8/Scraptown | Heard Great Nut preacher, LISTEN AND RECITE! 15241 | -8/Scraptown | Visited SPCMW 15270 | -8/Scraptown | Visited IN-MT5's Study 15340 | -8/Scraptown | Visited The Evicted 15374 | -8/Scraptown | Visited Fellowship of the Rings 15472 | -8/Scraptown | Visited UFD Registry 15472 | -8/Scraptown | Registered with UFD as "Kinetimind" 15505 | -8/Scraptown | Visited Botcube Research 15531 | -8/Scraptown | Visited Abandonware Association 15547 | -8/Scraptown | Learned abandonware demo "REBOOT5.EXE" 15598 | -8/Scraptown | Visited Analyses Database 15632 | -8/Scraptown | Visited Research Penetration Think Tank 15667 | -8/Scraptown | Visited Junk Repository 15720 | -8/Scraptown | Discovered new exit (range 3) 15816 | -8/Scraptown | Visited Curators Association 15875 | -8/Scraptown | Visited Junk Repository 15926 | -8/Scraptown | Visited A0-MCA Data Center 15936 | -8/Scraptown | Given a B rating by A0-MCA 15941 | -8/Scraptown | Found A0-MCA's Component Scanner 15977 | -8/Scraptown | Visited Scrap Suit Storage 18710 | -8/Scraptown | Found Lrg. Botcube 19405 | -8/Scraptown | Met Optimus 19405 | -8/Scraptown | Accepted into 0bPrime 19805 | -8/Scraptown | Civil war broke out across Scraptown 19863 | -8/Scraptown | Lost 11 allies 19941 | -8/Scraptown | Lost 7 allies 20035 | -8/Scraptown | Found Lrg. Botcube 20038 | -8/Scraptown | Found Botcube 20045 | -8/Scraptown | Found Lrg. Botcube 20097 | -8/Scraptown | Lrg. Botcube activated 20125 | -8/Scraptown | Optimus destroyed in the chaos of civil war 20133 | -8/Scraptown | Lrg. Botcube completed mutation into legged form, armed with 3 guns, 1 cannon. 20159 | -8/Scraptown | Lost 8 allies 20224 | -8/Scraptown | Found Scrap Suit 20244 | -8/Scraptown | Found Scrap Suit 20300 | -8/Scraptown | Core integrity fell below 20% 20337 | -8/Scraptown | Found Deploy-a-Sentry 20351 | -8/Scraptown | Found Surveybot 24 Chip 20408 | -8/Scraptown | Lost 3 allies 20425 | -8/Scraptown | DAS Turret deployed 20501 | -8/Scraptown | Build established: Scavenger-Scrapper 20603 | -8/Scraptown | Lost 4 allies 20660 | -8/Scraptown | Found Siege Cannon Replica 20755 | -8/Scraptown | Lost 6 allies 20794 | -8/Scraptown | Destroyed by 9I-U0R(j) with Overtuned Pulse Rifle Last Messages --------------- 20763_ Bolt Gun melted. 20765_ Scrap Suit cannibalized Ovr. Treads to repair Ovr. Treads. 20769_ Acquired Ovr. Treads. 20770_ Acquired 10 matter. 20772_ Critical hit (Burn: +37). 20783_ Slug penetrates RV-27X(g). 20785_ IT-OCS(j) suffers critical hit (Burn). 20785_ Lgt. Deuterium Engine melted. 20785_ IT-OCS(j) destroyed. 20785_ Switching to secondary target: ST-QHE(j). 20785_ Ovr. Treads destroyed. 20787_ Critical hit (Burn: +37). 20791_ Scrap Suit cannibalized Ovr. Pulse Rifle to repair Ovr. Pulse Rifle. 20791_ Critical hit (Burn: +37). 20792_ Slug penetrates ST-QHE(j). 20793_ ST-QHE(j) destroyed. 20794_ Scrap Suit cannibalized Imp. Deuterium Engine to repair Imp. Deuterium Engine. 20794_ Critical hit (Burn: +37). Map ----- +----------------------------------------------------+ | "#??????????????????????????#"" ##""!##"" ##!!"### | | "#??????????????????????????#""M ! % | | "#??????????????????????????# t ]%! | | "#??????????????????????????################## ### | | "#???????????????????????????????????????????###?? | | ##???????????????????????????????????????????????? | | ?????????????????????#######???#########?????????? | | ???###???????????????" !"???#"""""""""#????????? | | "??""""??????????????#" "???#"""""""""#???????## | | " " """???????????#### ##??#"""""""""#???????# | | "" ""#??????????#"!! "#??#"""""""""#???????#= | | "" "#??????????#"!=* !"#??#""" """######### | | "" "#??????????#"%! !"#??#""" """##]!#/!!#] | | " "#??????????#"!=% !"#??#"!" """##=!# ! #] | | " "#??????????#" "#??#""" """"## # #[ | | "#??????????## ##??#"""! !"""## *= | | " "#??????????# =% #??# ! % "## =!! | | ""#??????????####!#####??####=###########!##= | | ##### ####???????####*%########### !##########*##! | | #???????#""""![= = % !%%[! [=" """% == | | #????##?# !%% %!% !!%!=!%E!! &%=!= /!= | | #????# ## /%%!!%[!!h[%!= [*!!!= ! | | #?????# #" =!= !j !=!=[!=[% % =%=%==!% | | #??????#;"!=*!% %E !%=!!* !! *!=!![! ! | | #???#####!*=! !%!%= !!=%=!%! % !%! [!! | | #???#""""*!% =%&@=!"""[! "%""" "!"[""[! " | | #???#""""=%!%= "%! """"" """""""""" """" | | #???#"""" =!/! "###### ################ | | #???#"""" !*[!*[ # ##????????# | | #???#"""[=!%%%[ !# X"#????????# | | ###?#""""[==%==["# "" "" ##????????# | | ""#"#"""!%=*[%!= # ""* ["" X"#??????### | | """"#""="=!=![=="# "%[! % " ######### # | | ""######=!%j!=**" ==! [ % | | ###????#!%j%!!["" "" !%! = | | !#########p%j==!%"# " " ######### # | | =%= %!%gg!g!="# "" "" ""#??????### | | !! %![*!%!![=""# "" "" ##????????# | | !*!%/==![!%!="# X"?????????# | | *=[=!=%%%[=%[=!"# ##????????# | | ==%!!!!*!=!!%!*%![###### ################ | | *!%!!%!!%!!%%=!*%==""!""""""""""""""" """""" | | %[==[==!%=!%=%!%*![![!!%""!""""""" " ! %= ! | | =*!!%=%===%!%%%%=[%=%[!=%! =%= %! | | ==!==!%==%%&![!%%=!!%*[! !%= ! % %! ! =! | | !*!%%[%==!%=!*!!!!%!%==*!= != %[ % !!%% ! % | | *!%!!#""""#%!=!!!!%=*!& ! =!!%%=[ /%= !%=! | | /[[#????#!!%![==[%[ =%[=% % !=[ ! | | #????#"==[%!=="" " "!==!!%[! !!==! | | ## ### ####????## #=[ ########## ######## %[ | +----------------------------------------------------+ Best States ------------- Heat Dissipation 59 Energy Generation 21 Energy Capacity 290 Matter Stores 300 Matter Capacity 300 Sight Range 16 Terrain Scan Density 10 Base Temperature (-) 150 Armor Coverage 225 Resistance: KI 20 Evasion (%) 55 Targeting Accuracy 8 Target Analysis 5 Recoil Reduction 3 Particle Charging 20 Item Schematics ----------------- Lrg. Storage Unit | -8/Recycling | Hacked Hcp. Storage Unit | -8/Recycling | Hacked Robot Schematics ------------------ G-47 Trooper | -8/Recycling | Hacked Fabricated ------------ Nothing Repaired ---------- Adv. Treads | 13% | -8/Materials Alien Tech Used ----------------- None Achievements -------------- None Challenges ------------ None Game ------ Seed StasisParticleDetonator Manual? 0 Play Time 01:55:56 Cumulative 400.5 hours Start 2025.07.25 @ 14:39:43 End 2025.07.26 @ 14:09:02 Sessions 3 Manual Loads 0 Difficulty Rogue Special Mode None Game No. 265 Rogue 265 Adventurer 0 Explorer 0 Win Type - Total 28 Types 22/0/4/2/0/0/0/0/0/0 Lore% 91 Gallery% 82 Achievement% 68 Wizard Run 0 Options --------- Layout 0 ASCII 1 Keyboard 1 Movement Arrows Keybinds 0 Fullscreen 2 Font 18/Terminus Map View 76x50 Zoom Use 0% Tactical HUD 1 Map Filters NONE Filters NONE Steam 1 RUN: 8db88e24-353b-4815-92f9-e6e48af7140b